Cogmind - Beta 10.2 @@@ ROGUE MODE // 2022.01.27 @ 18:42:30 Player: Cheeriohz Result: Destroyed by 8R-AWN with 8R-AWN's Boregun Performance ------------- Evolutions (1) 500 Regions Visited (5) 1000 Robots Destroyed (36) 180 Value Destroyed (924) 924 Prototype IDs (2) 40 Alien Tech Used (0) 0 Bonus (0) 0 TOTAL SCORE: 2644 Bonus ------- None Cogmind --------- Core Integrity 0/400 Matter 212/300 Energy 99/100 System Corruption 7% Temperature Cool (0) Movement Core (300) Ox5 Location -9/Exiles Parts ------- > --- POWER (1) -------- (None) > --- PROPULSION (2) --- (None) > --- UTILITY (4) ------ Large Storage Unit Improved Terrain Scanner Propulsion Shielding > --- WEAPON (2) ------- (None) > --- INVENTORY (10) --- Wheel Wheel Medium Matter Pod (100) Improved Signal Interpreter Peak State ------------ > --- POWER ------------ Light Nuclear Core > --- PROPULSION ------- Wheel Compact Wheel > --- UTILITY ---------- Improved Heat Sink Medium Storage Unit Compact Matter Pod Terrain Scanner > --- WEAPON ----------- Heavy Assault Rifle Heavy Assault Rifle > --- INVENTORY -------- Light Nuclear Core Wheel Compact Wheel Compact Wheel Large Battery Improved Signal Interpreter Heavy Assault Rifle Rocket Launcher [Rating: 18] Favorites ----------- Power Light Ion Engine Engine Light Ion Engine Power Core Light Nuclear Core Propulsion Wheel Leg Aluminum Leg Wheel Wheel Utility Terrain Scanner Device Terrain Scanner Storage Large Storage Unit Protection Propulsion Shielding Weapon Heavy Assault Rifle Energy Gun EM Pulse Gun Ballistic Gun Heavy Assault Rifle Ballistic Cannon Light Cannon Launcher Rocket Launcher Impact Weapon Maul Build | -11 -10 -10 -9 -9 -9 ------- Run | Scr Mat Min Mat Min Exi Slots Evolved 2 | . . . 2 . . Power . | . . . . . . Propulsion . | . . . . . . Utility 2 | . . . 2 . . Weapon . | . . . . . . Parts Attached 42 | . 4 5 26 . 7 Power 5 | . . 2 2 . 1 Engine 3 | . . 1 2 . . Core 2 | . . 1 . . 1 Reactor . | . . . . . . Propulsion 10 | . 2 1 7 . . Treads . | . . . . . . Leg . | . . . . . . Wheel 10 | . 2 1 7 . . Hover . | . . . . . . Flight . | . . . . . . Utility 10 | . 1 1 7 . 1 Device 3 | . 1 . 2 . . Storage 3 | . . 1 2 . . Processor . | . . . . . . Hackware . | . . . . . . Protection 4 | . . . 3 . 1 Artifact . | . . . . . . Weapon 17 | . 1 1 10 . 5 Energy Gun 1 | . . . 1 . . Energy Cannon . | . . . . . . Ballistic Gun 10 | . . . 7 . 3 Ballistic Cannon 2 | . 1 1 . . . Launcher 2 | . . . 1 . 1 Special Weapon . | . . . . . . Impact Weapon 2 | . . . 1 . 1 Slashing Weapon . | . . . . . . Piercing Weapon . | . . . . . . Special Melee Weapon . | . . . . . . Unidentified Prototypes . | . . . . . . Parts Lost 18 | . . 1 7 . 10 Power 3 | . . . 1 . 2 Propulsion 4 | . . . 2 . 2 Utility 3 | . . . 1 . 2 Weapon 8 | . . 1 3 . 4 Highest Loss Streak 9 | . . 1 2 . 9 Average Slot Usage (%) 96 | . 97 99 93 100 97 Engine 8 | . 14 7 4 11 9 Core 3 | . . 6 6 . . Wheel 23 | . 24 28 21 22 21 Device 13 | . 12 14 17 11 11 Storage 12 | . 14 14 11 11 11 Protection 9 | . . . 9 22 21 Energy Gun 5 | . 14 7 1 11 4 Ballistic Gun 8 | . 4 . 14 . 11 Ballistic Cannon 7 | . 8 19 2 . . Impact Weapon 1 | . . . 1 11 4 Naked Turns . | . . . . . . Heaviest Build 36 | 11 13 20 36 32 32 Greatest Support 32 | 20 32 32 32 20 20 Greatest Overweight (x) 5 | . 1 . 1 1 5 Average Overweight (x) . | . . . . 1 1 Largest Inventory Capacity 10 | 6 6 8 10 10 10 Average Capacity 8 | 6 6 6 8 10 10 Most Carried 10 | 6 6 8 10 10 10 Average Carried 7 | 6 5 6 8 10 9 Final Capacity 10 | 6 6 8 10 10 10 Final Carried 10 | 6 6 8 10 10 4 Class Distribution -------------------- 98% | Mutant Dominant Class ---------------- Mutant | -10/Materials Mutant | -10/Mines Mutant | -9/Materials Mutant | -9/Mines Mutant | -9/Exiles Resources | -11 -10 -10 -9 -9 -9 ----------- Run | Scr Mat Min Mat Min Exi Matter Collected 924 | 200 33 137 466 88 . Remotely . | . . . . . . Salvage Created 1117 | . 119 171 804 . 23 Parts 80 | . 3 15 62 . . Haulers Intercepted . | . . . . . . Recyclers Shooed . | . . . . . . Parts Field Recycled . | . . . . . . Retrieved Matter . | . . . . . . Parts Self-Destructed . | . . . . . . Prevented . | . . . . . . Kills | -11 -10 -10 -9 -9 -9 ------- Run | Scr Mat Min Mat Min Exi Combat Hostiles Destroyed 37 | . 2 7 21 . 7 Guns 20 | . . 3 16 . 1 Cannons 4 | . . 4 . . . AOE 12 | . 1 . 5 . 6 Classes Destroyed 10 | . 2 1 6 . 1 Worker 1 | . . . 1 . . Builder 1 | . . . 1 . . Recycler 1 | . . . 1 . . Operator 1 | . . . 1 . . Watcher 2 | . 1 . 1 . . Swarmer 11 | . . 3 8 . . Grunt 14 | . 2 4 8 . . Duelist 2 | . . . 2 . . Sentry 3 | . . . 3 . . Assembled 7 | . . . . . 7 Best Kill Streak 7 | . 2 3 6 . 7 Combat Bots Only 7 | . 2 3 4 . 7 Max Kills in Single Turn 6 | . 1 1 6 . 3 Gunslinging . | . . . . . . Exploded 4 | . 1 . 4 . 3 Melee . | . . . . . . Uniques/NPCs Destroyed . | . . . . . . Combat | -11 -10 -10 -9 -9 -9 -------- Run | Scr Mat Min Mat Min Exi Damage Taken 2480 | . 147 233 1018 . 1082 Core 532 | . 29 98 76 . 329 Absorbed by Shields . | . . . . . . Core Remaining (%) 74 | 100 . 49 . . . Volleys Fired 115 | . 16 29 54 . 16 Largest 2 | . 2 1 2 . 2 Hottest 60 | . 60 40 46 . 46 Shots Fired 161 | . 17 29 97 . 18 Gun 140 | . 17 11 96 . 16 Cannon 18 | . . 18 . . . Launcher 3 | . . . 1 . 2 Special . | . . . . . . Kinetic 125 | . 1 18 90 . 16 Thermal . | . . . . . . Explosive 3 | . . . 1 . 2 Electromagnetic 33 | . 16 11 6 . . Robot Hit Streak 13 | . 10 6 10 . 13 Robot Miss Streak 3 | . 1 2 3 . 1 Penetration Max . | . . . . . . Secondary Targets . | . . . . . . Shots Hit Robots 114 | . 15 21 62 . 16 Core Hits 60 | . 3 10 33 . 14 Critical Hits 1 | . . 1 . . . Critical Kills 1 | . . 1 . . . Critical Parts Destroyed . | . . . . . . Melee Attacks 7 | . . . 1 . 6 Impact 7 | . . . 1 . 6 Slashing . | . . . . . . Piercing . | . . . . . . Sneak Attacks . | . . . . . . Combat Hostiles . | . . . . . . Follow-up Attacks . | . . . . . . Damage Inflicted 2609 | . 275 390 1306 . 638 Guns 1503 | . 210 103 1013 . 177 Cannons 287 | . . 287 . . . Explosions 706 | . 65 . 293 . 348 Melee 113 | . . . . . 113 Ramming . | . . . . . . Kinetic 1390 | . . 287 926 . 177 Thermal 129 | . 65 . 64 . . Explosive 577 | . . . 229 . 348 Electromagnetic 400 | . 210 103 87 . . Impact 113 | . . . . . 113 Slashing . | . . . . . . Piercing . | . . . . . . Highest Corruption 7 | . . . . . 7 Average Corruption 7 | . . . . . 7 Corruption Purged . | . . . . . . Overload Shots . | . . . . . . Overflow Damage 18 | . . . . . 18 Projectiles . | . . . . . . Explosions 18 | . . . . . 18 Melee . | . . . . . . Knockbacks 5 | . . 4 . . 1 Impact 1 | . . . . . 1 Kinetic 2 | . . 2 . . . Secondary 2 | . . 2 . . . Self-Inflicted Damage 68 | . 21 . . . 47 Shots 2 | . 1 . . . 1 Rammed 1 | . . . . . 1 Targets Rammed 1 | . . . . . 1 Kicked . | . . . . . . Crushed . | . . . . . . Highest Temperature 72 | . 63 36 72 . 18 Average Temperature 20 | . 32 14 17 . 14 Received Heat Transfer 532 | . 75 114 303 . 40 Siege Activations . | . . . . . . Robots Corrupted 1 | . 1 . . . . Combat Hostiles 1 | . 1 . . . . Parts Fried 1 | . . 1 . . . Impact Corruptions . | . . . . . . Robots Melted . | . . . . . . Combat Hostiles . | . . . . . . Parts Melted . | . . . . . . Heat Transferred 150 | . 100 . 50 . . Parts Sabotaged . | . . . . . . Parts Stolen . | . . . . . . Parts Stripped . | . . . . . . Power Chain Reactions 2 | . 1 . 1 . . Missiles Intercepted . | . . . . . . Alert | -11 -10 -10 -9 -9 -9 ------- Run | Scr Mat Min Mat Min Exi Peak Influence 412 | . 102 209 412 102 . Initial 102 | . . 39 11 102 . Average 124 | . 70 59 209 102 . Maximum Alert Level 2 | . . 1 2 . . Low Security (%) 71 | 100 100 99 32 100 . Level 1 26 | . . . 62 . . Level 2 2 | . . . 4 . . Level 3 . | . . . . . . Level 4 . | . . . . . . Level 5 . | . . . . . . High Security . | . . . . . . Max Security . | . . . . . . Squads Dispatched 4 | . 2 . 2 . . Investigation 2 | . 1 . 1 . . Extermination . | . . . . . . Reinforcement 2 | . 1 . 1 . . Assault . | . . . . . . Garrison . | . . . . . . Intercept . | . . . . . . Construction Impeded . | . . . . . . Haulers Reinforced . | . . . . . . Stealth | -11 -10 -10 -9 -9 -9 --------- Run | Scr Mat Min Mat Min Exi Distress Signals 1 | . . . 1 . . Communications Jammed . | . . . . . . Distress Signals . | . . . . . . Times Spotted 48 | . 5 8 27 . 8 Peak Tracking Total 9 | . 2 3 5 . 9 Tactical Retreats 2 | . 1 1 . . . Traps | -11 -10 -10 -9 -9 -9 ------- Run | Scr Mat Min Mat Min Exi Traps Triggered 1 | . 1 . . . . Indirectly . | . . . . . . Trap Hack Attempts . | . . . . . . Triggered . | . . . . . . Disarmed . | . . . . . . Reprogrammed . | . . . . . . Reused . | . . . . . . Traps Extracted . | . . . . . . Installed . | . . . . . . Triggered . | . . . . . . Machines | -11 -10 -10 -9 -9 -9 ---------- Run | Scr Mat Min Mat Min Exi Machines Disabled 4 | . . . 1 . 3 Max in Single Turn 2 | . . . 1 . 2 Machines Sabotaged . | . . . . . . Garrisons Compromised . | . . . . . . Overloaded Fab Kills . | . . . . . . Fab Network Shutdowns . | . . . . . . Hacking | -11 -10 -10 -9 -9 -9 --------- Run | Scr Mat Min Mat Min Exi Machines Accessed 11 | . 2 . 8 . 1 Terminals 8 | . 1 . 7 . . Fabricators . | . . . . . . Repair Stations 1 | . 1 . . . . Recycling Units 1 | . . . 1 . . Scanalyzers . | . . . . . . Garrison Access . | . . . . . . Total Hacks 55 | . 5 . 27 . 23 Successful 40 | . 3 . 14 . 23 Failed 15 | . 2 . 13 . . Catastrophic 2 | . . . 2 . . Database Lockouts . | . . . . . . Manual 19 | . 3 . 16 . . Terminals 26 | . 3 . 23 . . Fabricators . | . . . . . . Repair Stations 2 | . 2 . . . . Recycling Units 4 | . . . 4 . . Scanalyzers . | . . . . . . Garrison Access . | . . . . . . Terminal Hacks 28 | . . . 5 . 23 Record 23 | . . . . . 23 Prototype ID Bank 1 | . . . 1 . . Branch Access Points 1 | . . . 1 . . Unreport Threat 1 | . . . 1 . . Locate Traps 1 | . . . 1 . . Zone Layout 1 | . . . 1 . . Fabricator Hacks . | . . . . . . Repair Station Hacks 2 | . 2 . . . . Scan Component 1 | . 1 . . . . Repair 1 | . 1 . . . . Recycling Unit Hacks 1 | . . . 1 . . Report Inventory 1 | . . . 1 . . Scanalyzer . | . . . . . . Garrison Access Hacks . | . . . . . . Unauthorized Hacks 9 | . 1 . 8 . . Terminals 7 | . 1 . 6 . . Botnet 7 | . 1 . 6 . . Fabricators . | . . . . . . Repair Stations . | . . . . . . Recycling Units 2 | . . . 2 . . Reject 1 | . . . 1 . . Recyclers 1 | . . . 1 . . Scanalyzers . | . . . . . . Garrison Access . | . . . . . . Data Cores Recovered 1 | . . . 1 . . Used 1 | . . . 1 . . Hacking Detections 9 | . 2 . 7 . . Full Trace Events 1 | . . . 1 . . Feedback Events . | . . . . . . Feedback Blocked . | . . . . . . Robot Schematics Acquired . | . . . . . . Robots Built . | . . . . . . Matter . | . . . . . . Time . | . . . . . . Total Robot Build Rating . | . . . . . . Part Schematics Acquired . | . . . . . . Parts Built . | . . . . . . Matter . | . . . . . . Time . | . . . . . . Total Part Build Rating . | . . . . . . Parts Repaired 1 | . 1 . . . . Time 26 | . 26 . . . . Parts Recycled . | . . . . . . Recycled Matter . | . . . . . . Retrieved Matter . | . . . . . . Retrieved Components . | . . . . . . Parts Scanalyzed . | . . . . . . Part Schematics Acquired . | . . . . . . Parts Damaged . | . . . . . . Bothacking | -11 -10 -10 -9 -9 -9 ------------ Run | Scr Mat Min Mat Min Exi Used RIF Installer . | . . . . . . Robots Hacked . | . . . . . . Non-combat . | . . . . . . Combat . | . . . . . . Robot Hacks Applied . | . . . . . . Relay Couplers Released . | . . . . . . Robots Rewired . | . . . . . . Allies Hacked . | . . . . . . Hacks Repelled . | . . . . . . Allies | -11 -10 -10 -9 -9 -9 -------- Run | Scr Mat Min Mat Min Exi Total Allies . | . . . . . . Largest Group . | . . . . . . Highest-Rated Group . | . . . . . . Highest-Rated Ally . | . . . . . . Total Orders . | . . . . . . Ally Attacks . | . . . . . . Total Damage . | . . . . . . Kills . | . . . . . . Allies Corrupted . | . . . . . . Allies Melted . | . . . . . . Intel | -11 -10 -10 -9 -9 -9 ------- Run | Scr Mat Min Mat Min Exi Robot Analysis Total . | . . . . . . Derelict Logs Recovered 2 | . . 2 . . . Drone Launches . | . . . . . . Drone Recoveries . | . . . . . . Exploration | -11 -10 -10 -9 -9 -9 ------------- Run | Scr Mat Min Mat Min Exi Turns Passed 2622 | 5 259 744 748 32 834 Spaces Moved 2193 | 5 193 658 523 36 778 Core 5 | . . . . . 5 Treads . | . . . . . . Legs 24 | 5 19 . . . . Wheels 2164 | . 174 658 523 36 773 Hover . | . . . . . . Flight . | . . . . . . Fastest Speed 90 | 120 100 90 90 90 90 Average Speed 94 | 120 102 96 93 90 91 Slowest Speed 300 | 120 150 100 100 90 300 Overloaded Moves . | . . . . . . Propulsion Burnouts . | . . . . . . Robots Hopped . | . . . . . . Cave-ins Triggered 1 | . . . . . 1 Exploration Rate (%) 46 | 2 38 96 53 11 79 Regions Visited 5 Branch Regions 3 Pre-discovered Areas 4 | . . 3 . . 1 Known Exits Taken 1 | . . . 1 . . Unknown Exits Taken 4 | 1 1 1 . 1 . Scrap Searched 1 | . . 1 . . . Spaces Dug 1 | . . . 1 . . Terrain Destroyed 40 | . 4 . 18 . 18 Melee 1 | . . . 1 . . Projectile . | . . . . . . AOE 39 | . 4 . 17 . 18 Terrain Rammed . | . . . . . . Walls Destroyed . | . . . . . . Machines Disabled . | . . . . . . Actions | -11 -10 -10 -9 -9 -9 --------- Run | Scr Mat Min Mat Min Exi Total 2577 | 4 239 740 686 35 873 Wait 168 | . 15 40 56 . 57 Move 2188 | 4 192 657 522 35 778 Hop . | . . . . . . Pick Up 24 | . 5 4 12 . 3 Fast Attach 11 | . 4 1 6 . . Attach 14 | . . 1 8 . 5 Detach 1 | . . . 1 . . Swap 17 | . . 3 12 . 2 Drop 31 | . 7 5 14 . 5 Fire 115 | . 16 29 54 . 16 Melee 7 | . . . 1 . 6 Ram 1 | . . . . . 1 Kick . | . . . . . . Crush . | . . . . . . Escape Stasis . | . . . . . . Rewire . | . . . . . . Trap . | . . . . . . Miscellaneous . | . . . . . . Route ------- -11/Scrapyard -10/Materials (discovered 2 exits: *Mat / [*Min]) -10/Mines (discovered 2 exits: *Mat x2) -9/Materials (discovered 3 exits: [*Mat] / *Min x2) -9/Mines (discovered 2 exits: [*Mat] / *Exi) -9/Exiles (discovered 1 exit: [*Min]) History --------- Turn | Location | Event 1 | -11/Scrapyard | Discovered new exit (range 2) 6 | -11/Scrapyard | Entered Materials 118 | -10/Materials | Repaired Assault Rifle? 175 | -10/Materials | Discovered new exit (range 10) 249 | -10/Materials | Discovered new exit (range 8) 265 | -10/Materials | Entered Mines 278 | -10/Mines | Learned location of Mines (-9) 303 | -10/Mines | Build established: Mutant 419 | -10/Mines | Learned location of Storage (-7) 682 | -10/Mines | Core integrity fell below 50% 725 | -10/Mines | Discovered new exit (range 10) 864 | -10/Mines | Received a Rocket Launcher from a helpful Derelict 916 | -10/Mines | Discovered new exit (range 11) 1009 | -10/Mines | Entered Materials 1009 | -9/Materials | Evolved 2 slots: Utility x2 1058 | -9/Materials | Discovered new exit (range 14) 1318 | -9/Materials | Discovered new exit (range 14) 1402 | -9/Materials | Identified exit to Mines 1757 | -9/Materials | Entered Mines 1767 | -9/Mines | Discovered new exit (range 12) 1785 | -9/Mines | Deemed a non-threat by the Exiles lab entrance 1785 | -9/Mines | Discovered new exit (range 5) 1789 | -9/Mines | Entered Exiles 1810 | -9/Exiles | Met 8R-AWN 1826 | -9/Exiles | Met EX-HEX 1873 | -9/Exiles | Met EX-DEC 1894 | -9/Exiles | Visited The Gauntlet 1997 | -9/Exiles | Learned location of Zion (-6) 2047 | -9/Exiles | Discovered new exit (range 14) 2465 | -9/Exiles | Attacked by the Exiles 2529 | -9/Exiles | Destroyed 7 combat bots 2574 | -9/Exiles | Core integrity fell below 50% 2606 | -9/Exiles | Crushed by falling debris 2616 | -9/Exiles | Core integrity fell below 20% 2623 | -9/Exiles | Destroyed by 8R-AWN with 8R-AWN's Boregun Last Messages --------------- 02605_ HV Slug penetrates Earth. 02606_ The unstable cave ceiling collapses. 02606_ Crushed by falling debris. 02606_ Propulsion Shielding destroyed. 02606_ System corrupted by crushing effect (+3). 02606_ Maul destroyed. 02606_ System corrupted by crushing effect (+4). 02611_ Penetrated by HV Slug. 02615_ HV Slug penetrates Wall. 02615_ Penetrated by HV Slug. 02615_ HV Slug penetrates Wall. 02617_ Slammed into 8R-AWN. 02619_ Penetrated by HV Slug. 02619_ HV Slug penetrates Earth. 02619_ Penetrated by HV Slug. 02619_ HV Slug penetrates Earth. 02623_ Penetrated by HV Slug. 02623_ HV Slug penetrates Machine. 02623_ Machine disabled. 02623_ Penetrated by HV Slug. Map ----- +----------------------------------------------------+ | ?????????????????????????????????????????????????? | | ??????????????????????????#??????????????????????? | | ?????????????????????????????????????????????????? | | ?????????????????????#?#?????????????????????????? | | ??????????######?????#???????????????????????????? | | ?????????## ""?????????????????????????????????? | | ?????????# " ?#?????????#????????????????????? | | ?????????# < # #???????#???????????????????????? | | ?????????# #""???????????##????#?????????????? | | ?????????# " ??????????????????????????????? | | ?????????# ## #?#???????#???????????????????? | | ??????????# #? #?####?##????##??????????????? | | ???????#??# ##? ### #?#?????????##??????????? | | ???????????# #?# # # #?#??#######??????#?????? | | ???????????# ###"";# #?#??#!!! "#????#???????? | | ????????#??# " ;;#????# "#???#????????? | | ?????##????## ;#?#??# "##???????????? | | ???????????###" ;##??## ""#?????#????### | | ????????????#"" ;####" ""#????#?????# | | ????#??????##### ##" ""#?????#????#"" | | ???????????????## #"" #??##?????#??#"" | | ???????#????????#"## ##???????????#"" | | ????????#??##?#?####### ###????????#?#"" | | ????????#?#???????#???# # g * #???????????# | | ???????????????######## * ###??#??????#"" | | ????????????????# !!""" @ ##????????### | | ???????????????##! ! # ######??#### | | ??????????#?#???#! [ ;; """#####X# | | ??????????#????##! ##" | | ????????????#???# !"""" "# ####"# | | ???????????????########### ##### | | ??????????????#????????#?#######?#### | | ?????????????#???#??##????????#?#???### | | ????????????#??????????????###??????#?## | | ????????????????????????????#???????##### | | ?????????????????????????????????#????#?##" | | ???????????????#????#????#?##????????????#"" | | ?????????????????????????#?#????#?????#?##" | | ??????????????????????????#??????????#??#"" | | ??????????????????????#??????#????##?#?##""" | | ????????????????????????????#????##???##""" | | ??????????????????#???????????????????##""" | | ????????????????????????????????????#??#"" | | ??????????????????????????????????????##""" | | ?????????????????????????????????#??#??#"" | | ???????????????????????????????????????##"" | | ?????????????????????????????????????#??#"""" | | ?????????????????????????????????????#??## | | ?????????????????????????????????????????#" | | ?????????????????????????????????????????#"""" | +----------------------------------------------------+ Best States ------------- Heat Dissipation 42 Energy Generation 14 Energy Capacity 265 Matter Stores 430 Matter Capacity 450 Sight Range 16 Terrain Scan Range 16 Terrain Scan Density 10 Armor Coverage 150 Propulsion Shielding 33 Evasion (%) 42 Item Schematics ----------------- None Robot Schematics ------------------ None Fabricated ------------ Nothing Alien Tech Used ----------------- None Achievements -------------- None Challenges ------------ None Game ------ Seed NuclearIntegrationMeganuke Manual? 0 Play Time 00:33:41 Cumulative 64.2 hours Start 2022.01.27 @ 18:09:18 End 2022.01.27 @ 18:42:30 Sessions 1 Manual Loads 0 Difficulty Rogue Special Mode None Game No. 54 Rogue 54 Adventurer 0 Explorer 0 Win Type - Total 2 Types 2/0/0/0/0/0/0/0/0 Lore% 41 Gallery% 54 Achievement% 40 Wizard Run 0 Options --------- ASCII 0 Keyboard 1 Movement Numpad Keybinds 0 Fullscreen 1 Font 24/Smallcaps Map View 113x50 Tactical HUD 1 Map Filters NONE Filters NONE Steam 1 RUN: 7d874bfc-832e-44b0-bf07-27213e636671